[Event "Grandmaster Tournament Rapid"]
[Site "Biel/Bienne, Switzerland"]
[Date "2019.07.21"]
[Round "2.3"]
[White "Vidit, Santosh"]
[Black "Shankland, Sam"]
[Result "1/2-1/2"]
[ECO "D12"]
[WhiteElo "2703"]
[BlackElo "2713"]
[PlyCount "148"]
[EventDate "2019.??.??"]
[EventType "rapid"]
[TimeControl "15+5"]
[WhiteClock "0:00:07"]
[BlackClock "0:04:13"]

1. d4 {[%emt 0:00:00]} d5 {[%emt 0:00:00]} 2. c4 {[%emt 0:00:00]} c6 {[%emt 0:
00:00]} 3. Nf3 {[%emt 0:00:00]} Nf6 {[%emt 0:00:00]} 4. e3 {[%emt 0:00:00]} Bf5
{[%emt 0:00:00]} 5. Nc3 {[%emt 0:00:00]} e6 {[%emt 0:00:00]} 6. Nh4 {[%emt 0:
00:00]} Be4 {[%emt 0:00:00]} 7. f3 {[%emt 0:00:00]} Bg6 {[%emt 0:00:00]} 8. Qb3
{[%emt 0:00:00]} Qc7 {[%emt 0:00:00]} 9. Bd2 {[%emt 0:00:00]} Be7 {[%emt 0:00:
00]} 10. g3 {[%emt 0:00:00]} a6 {[%emt 0:00:00]} 11. Rc1 {[%emt 0:00:00]} dxc4
{[%emt 0:00:00]} 12. Bxc4 {[%emt 0:00:00]} b5 {[%emt 0:00:00]} 13. Be2 {
[%emt 0:00:00]} Nbd7 {[%emt 0:00:00]} 14. Nxg6 {[%emt 0:00:00]} hxg6 {[%emt 0:
00:00]} 15. Qc2 {[%emt 0:00:00]} O-O {[%emt 0:00:00]} 16. O-O {[%emt 0:00:00]}
c5 {[%emt 0:00:00]} 17. dxc5 {[%emt 0:00:00]} Qxc5 {[%emt 0:00:00]} 18. Ne4 {
[%emt 0:00:00]} Nxe4 {[%emt 0:00:00]} 19. Qxe4 {[%emt 0:00:00]} Qa7 {[%emt 0:
00:00]} 20. Kg2 {[%emt 0:00:00]} Rfd8 {[%emt 0:00:00]} 21. Qc2 {[%emt 0:00:00]}
Nb6 {[%emt 0:00:00]} 22. Rfd1 {[%emt 0:00:00]} Nd5 {[%emt 0:00:00]} 23. Qb3 {
[%emt 0:00:00]} Bc5 {[%emt 0:00:00]} 24. e4 {[%emt 0:00:00]} Ne3+ {[%emt 0:00:
00]} 25. Bxe3 {[%emt 0:00:00]} Bxe3 {[%emt 0:00:00]} 26. Rxd8+ {[%emt 0:00:00]}
Rxd8 {[%emt 0:00:00]} 27. Rd1 {[%emt 0:00:00]} Bd4 {[%emt 0:00:00]} 28. f4 {
[%emt 0:00:00]} Qc5 {[%emt 0:00:00]} 29. Rd2 {[%emt 0:00:00]} g5 {[%emt 0:00:
00]} 30. Rc2 {[%emt 0:00:00]} Qe7 {[%emt 0:00:00]} 31. e5 {[%emt 0:00:18]} gxf4
{[%emt 0:00:00]} 32. gxf4 {[%emt 0:00:01]} g6 {[%emt 0:00:00]} 33. Qg3 {
[%emt 0:00:25]} Qb4 {[%emt 0:00:00]} 34. a3 {[%emt 0:00:25]} Qa4 {[%emt 0:00:
00]} 35. Rd2 {[%emt 0:00:27]} Bb6 {[%emt 0:00:00]} 36. Rxd8+ {[%emt 0:00:04]}
Bxd8 {[%emt 0:00:00]} 37. Qd3 {[%emt 0:00:15]} Be7 {[%emt 0:00:00]} 38. b4 {
[%emt 0:00:28]} Bxb4 {[%emt 0:00:00]} 39. axb4 {[%emt 0:00:02]} Qxb4 {[%emt 0:
00:00]} 40. Kf3 {[%emt 0:00:08]} Kg7 {[%emt 0:00:00]} 41. h4 {[%emt 0:00:24]}
Qe1 {[%emt 0:00:00]} 42. Qd8 {[%emt 0:00:21]} Qh1+ {[%emt 0:00:00]} 43. Kf2 {
[%emt 0:00:08]} Qh2+ {[%emt 0:00:00]} 44. Ke3 {[%emt 0:00:01]} Qg3+ {[%emt 0:
00:00]} 45. Bf3 {[%emt 0:00:08]} Qe1+ {[%emt 0:00:00]} 46. Be2 {[%emt 0:00:01]}
Qg3+ {[%emt 0:00:00]} 47. Ke4 {[%emt 0:00:11]} Qg2+ {[%emt 0:00:00]} 48. Bf3 {
[%emt 0:00:10]} Qc2+ {[%emt 0:00:00]} 49. Ke3 {[%emt 0:00:01]} Qc1+ {[%emt 0:
00:00]} 50. Qd2 {[%emt 0:00:05]} Qg1+ {[%emt 0:00:00]} 51. Ke4 {[%emt 0:00:04]}
Qc5 {[%emt 0:00:00]} 52. h5 {[%emt 0:00:05]} gxh5 {[%emt 0:00:00]} 53. Bxh5 {
[%emt 0:00:07]} b4 {[%emt 0:00:09]} 54. Bd1 {[%emt 0:00:17]} a5 {[%emt 0:00:05]
} 55. Bb3 {[%emt 0:00:04]} Qg1 {[%emt 0:00:11]} 56. Qd1 {[%emt 0:00:06]} Qg2+ {
[%emt 0:00:03]} 57. Ke3 {[%emt 0:00:02]} Qg3+ {[%emt 0:00:08]} 58. Ke4 {
[%emt 0:00:02]} Qf2 {[%emt 0:00:12]} 59. Qc2 {[%emt 0:00:06]} Qe1+ {[%emt 0:00:
05]} 60. Kf3 {[%emt 0:00:07]} Qf1+ {[%emt 0:00:03]} 61. Kg3 {[%emt 0:00:01]}
Qg1+ {[%emt 0:00:11]} 62. Kh3 {[%emt 0:00:06]} Qe3+ {[%emt 0:00:14]} 63. Kg4 {
[%emt 0:00:03]} Qg1+ {[%emt 0:00:03]} 64. Kf3 {[%emt 0:00:01]} Qf1+ {[%emt 0:
00:04]} 65. Ke3 {[%emt 0:00:03]} Qe1+ {[%emt 0:00:07]} 66. Kf3 {[%emt 0:00:18]}
Qf1+ {[%emt 0:00:03]} 67. Ke4 {[%emt 0:00:01]} Qe1+ {[%emt 0:00:04]} 68. Kd4 {
[%emt 0:00:02]} Qg3 {[%emt 0:00:13]} 69. Ke4 {[%emt 0:00:06]} Qe1+ {[%emt 0:00:
01]} 70. Kf3 {[%emt 0:00:03]} Qf1+ {[%emt 0:00:02]} 71. Ke3 {[%emt 0:00:06]}
Qe1+ {[%emt 0:00:03]} 72. Kf3 {[%emt 0:00:10]} Qf1+ {[%emt 0:00:01]} 73. Kg3 {
[%emt 0:00:03]} Qg1+ {[%emt 0:00:03]} 74. Kf3 {[%emt 0:00:12]} Qf1+ {[%emt 0:
00:07]} 1/2-1/2

[Event "Grandmaster Tournament Rapid"]
[Site "Biel/Bienne, Switzerland"]
[Date "2019.07.21"]
[Round "2.4"]
[White "Georgiadis, Nico"]
[Black "Leko, Peter"]
[Result "1/2-1/2"]
[ECO "E06"]
[WhiteElo "2514"]
[BlackElo "2674"]
[PlyCount "59"]
[EventDate "2019.??.??"]
[EventType "rapid"]
[TimeControl "15+5"]
[WhiteClock "0:02:43"]
[BlackClock "0:05:46"]

1. d4 {[%emt 0:00:00]} Nf6 {[%emt 0:00:00]} 2. c4 {[%emt 0:00:00]} e6 {[%emt 0:
00:00]} 3. Nf3 {[%emt 0:00:00]} d5 {[%emt 0:00:00]} 4. g3 {[%emt 0:00:00]} Be7
{[%emt 0:00:00]} 5. Bg2 {[%emt 0:00:00]} O-O {[%emt 0:00:00]} 6. Nc3 {[%emt 0:
00:00]} dxc4 {[%emt 0:00:00]} 7. Ne5 {[%emt 0:00:00]} c5 {[%emt 0:00:00]} 8.
dxc5 {[%emt 0:00:00]} Qxd1+ {[%emt 0:00:00]} 9. Nxd1 {[%emt 0:00:00]} Bxc5 {
[%emt 0:00:00]} 10. Nxc4 {[%emt 0:00:00]} Nc6 {[%emt 0:00:00]} 11. Be3 {
[%emt 0:00:00]} Bb4+ {[%emt 0:00:00]} 12. Bd2 {[%emt 0:00:00]} Bxd2+ {[%emt 0:
00:00]} 13. Nxd2 {[%emt 0:00:00]} Bd7 {[%emt 0:00:00]} 14. Nc3 {[%emt 0:00:00]}
Rfd8 {[%emt 0:00:00]} 15. O-O {[%emt 0:00:00]} Be8 {[%emt 0:00:00]} 16. Nc4 {
[%emt 0:00:00]} Kf8 {[%emt 0:00:00]} 17. Rfd1 {[%emt 0:00:00]} Ke7 {[%emt 0:00:
00]} 18. Nb5 {[%emt 0:00:00]} Rxd1+ {[%emt 0:00:00]} 19. Rxd1 {[%emt 0:00:00]}
a6 {[%emt 0:00:00]} 20. Nc7 {[%emt 0:00:00]} Rc8 {[%emt 0:00:00]} 21. Nxe8 {
[%emt 0:00:00]} Nxe8 {[%emt 0:00:00]} 22. Nb6 {[%emt 0:00:00]} Rc7 {[%emt 0:00:
00]} 23. f4 {[%emt 0:00:00]} Nd8 {[%emt 0:00:00]} 24. Kf2 {[%emt 0:00:00]} Nd6
{[%emt 0:00:00]} 25. Rd2 {[%emt 0:00:00]} Nc8 {[%emt 0:00:00]} 26. Nxc8+ {
[%emt 0:00:00]} Rxc8 {[%emt 0:00:00]} 27. Ke3 {[%emt 0:00:00]} f6 {[%emt 0:00:
00]} 28. Be4 {[%emt 0:00:00]} h6 {[%emt 0:00:00]} 29. a3 {[%emt 0:00:00]} Rc7 {
[%emt 0:00:00]} 30. Rc2 {[%emt 0:00:02]} 1/2-1/2

[Event "Grandmaster Tournament Rapid"]
[Site "Biel/Bienne, Switzerland"]
[Date "2019.07.21"]
[Round "3.1"]
[White "Bogner, Sebastian"]
[Black "Georgiadis, Nico"]
[Result "1/2-1/2"]
[ECO "D38"]
[WhiteElo "2584"]
[BlackElo "2514"]
[PlyCount "95"]
[EventDate "2019.??.??"]
[EventType "rapid"]
[TimeControl "15+5"]
[WhiteClock "0:02:08"]
[BlackClock "0:01:51"]

1. d4 {[%emt 0:00:00]} Nf6 {[%emt 0:00:00]} 2. c4 {[%emt 0:00:00]} e6 {[%emt 0:
00:00]} 3. Nf3 {[%emt 0:00:00]} d5 {[%emt 0:00:00]} 4. Nc3 {[%emt 0:00:00]} Bb4
{[%emt 0:00:00]} 5. Qa4+ {[%emt 0:00:00]} Nc6 {[%emt 0:00:00]} 6. Bg5 {[%emt 0:
00:00]} h6 {[%emt 0:00:00]} 7. Bxf6 {[%emt 0:00:00]} Qxf6 {[%emt 0:00:00]} 8.
e3 {[%emt 0:00:00]} O-O {[%emt 0:00:00]} 9. Rc1 {[%emt 0:00:00]} Qg6 {[%emt 0:
00:00]} 10. Qc2 {[%emt 0:00:00]} Qxc2 {[%emt 0:00:00]} 11. Rxc2 {[%emt 0:00:00]
} Rd8 {[%emt 0:00:00]} 12. a3 {[%emt 0:00:00]} Bf8 {[%emt 0:00:00]} 13. Nb5 {
[%emt 0:00:00]} Rd7 {[%emt 0:00:00]} 14. cxd5 {[%emt 0:00:00]} exd5 {[%emt 0:
00:00]} 15. Bd3 {[%emt 0:00:00]} a6 {[%emt 0:00:00]} 16. Nc3 {[%emt 0:00:00]}
Rd8 {[%emt 0:00:00]} 17. Ke2 {[%emt 0:00:00]} Ne7 {[%emt 0:00:00]} 18. Rb1 {
[%emt 0:00:00]} c6 {[%emt 0:00:00]} 19. Na4 {[%emt 0:00:00]} Bf5 {[%emt 0:00:
00]} 20. Nc5 {[%emt 0:00:00]} Ra7 {[%emt 0:00:00]} 21. Ne5 {[%emt 0:00:00]} f6
{[%emt 0:00:00]} 22. Bxf5 {[%emt 0:00:00]} Nxf5 {[%emt 0:00:00]} 23. Ned3 {
[%emt 0:00:00]} Re8 {[%emt 0:00:00]} 24. Kf3 {[%emt 0:00:00]} Bxc5 {[%emt 0:00:
00]} 25. Nxc5 {[%emt 0:00:00]} h5 {[%emt 0:00:00]} 26. h3 {[%emt 0:00:00]} Nd6
{[%emt 0:00:00]} 27. g4 {[%emt 0:00:00]} hxg4+ {[%emt 0:00:00]} 28. hxg4 {
[%emt 0:00:00]} Kf7 {[%emt 0:00:00]} 29. Rh1 {[%emt 0:00:00]} Raa8 {[%emt 0:00:
00]} 30. b3 {[%emt 0:00:00]} a5 {[%emt 0:00:00]} 31. a4 {[%emt 0:00:00]} Re7 {
[%emt 0:00:00]} 32. Nd3 {[%emt 0:00:00]} Ne4 {[%emt 0:00:00]} 33. Kg2 {[%emt 0:
00:00]} Ree8 {[%emt 0:00:00]} 34. f3 {[%emt 0:00:00]} Nd6 {[%emt 0:00:00]} 35.
Kf2 {[%emt 0:00:00]} Rh8 {[%emt 0:00:00]} 36. Rcc1 {[%emt 0:00:00]} Rxh1 {
[%emt 0:00:35]} 37. Rxh1 {[%emt 0:00:00]} Rc8 {[%emt 0:00:02]} 38. Rc1 {
[%emt 0:00:00]} Rh8 {[%emt 0:00:13]} 39. Kg2 {[%emt 0:00:00]} Re8 {[%emt 0:00:
01]} 40. Kf2 {[%emt 0:00:25]} Rh8 {[%emt 0:00:03]} 41. Kg3 {[%emt 0:00:12]} Re8
{[%emt 0:00:02]} 42. Re1 {[%emt 0:00:11]} g5 {[%emt 0:00:21]} 43. Kf2 {[%emt 0:
00:27]} Rh8 {[%emt 0:00:33]} 44. Kg2 {[%emt 0:00:01]} Re8 {[%emt 0:00:02]} 45.
Kf2 {[%emt 0:00:01]} Rh8 {[%emt 0:00:01]} 46. Kg2 {[%emt 0:00:01]} Re8 {
[%emt 0:00:03]} 47. Nc5 {[%emt 0:00:14]} Kg6 {[%emt 0:00:23]} 48. Nd3 {[%emt 0:
00:35]} 1/2-1/2

[Event "Grandmaster Tournament Rapid"]
[Site "Biel/Bienne, Switzerland"]
[Date "2019.07.21"]
[Round "3.3"]
[White "Shankland, Sam"]
[Black "Abdusattorov, Nodirbek"]
[Result "1/2-1/2"]
[ECO "E17"]
[WhiteElo "2713"]
[BlackElo "2598"]
[PlyCount "194"]
[EventDate "2019.??.??"]
[EventType "rapid"]
[TimeControl "15+5"]
[WhiteClock "0:00:30"]
[BlackClock "0:00:19"]

1. d4 {[%emt 0:00:00]} Nf6 {[%emt 0:00:00]} 2. c4 {[%emt 0:00:00]} e6 {[%emt 0:
00:00]} 3. Nf3 {[%emt 0:00:00]} b6 {[%emt 0:00:00]} 4. g3 {[%emt 0:00:00]} Bb7
{[%emt 0:00:00]} 5. Bg2 {[%emt 0:00:00]} Be7 {[%emt 0:00:00]} 6. O-O {[%emt 0:
00:00]} O-O {[%emt 0:00:00]} 7. b3 {[%emt 0:00:00]} d5 {[%emt 0:00:00]} 8. cxd5
{[%emt 0:00:00]} exd5 {[%emt 0:00:00]} 9. Nc3 {[%emt 0:00:00]} Nbd7 {[%emt 0:
00:00]} 10. Bb2 {[%emt 0:00:00]} Re8 {[%emt 0:00:00]} 11. Rc1 {[%emt 0:00:00]}
a6 {[%emt 0:00:00]} 12. e3 {[%emt 0:00:00]} Bd6 {[%emt 0:00:00]} 13. Ne1 {
[%emt 0:00:00]} Ne4 {[%emt 0:00:00]} 14. Nd3 {[%emt 0:00:00]} Nxc3 {[%emt 0:00:
00]} 15. Rxc3 {[%emt 0:00:00]} Qe7 {[%emt 0:00:00]} 16. b4 {[%emt 0:00:00]} Nf6
{[%emt 0:00:00]} 17. Qb3 {[%emt 0:00:00]} a5 {[%emt 0:00:00]} 18. a3 {[%emt 0:
00:00]} Ne4 {[%emt 0:00:00]} 19. Rc2 {[%emt 0:00:00]} a4 {[%emt 0:00:00]} 20.
Qa2 {[%emt 0:00:00]} Ba6 {[%emt 0:00:00]} 21. Rd1 {[%emt 0:00:00]} Bc4 {
[%emt 0:00:00]} 22. Rxc4 {[%emt 0:00:00]} dxc4 {[%emt 0:00:00]} 23. Qxc4 {
[%emt 0:00:00]} Rad8 {[%emt 0:00:00]} 24. Qc2 {[%emt 0:00:00]} c5 {[%emt 0:00:
00]} 25. bxc5 {[%emt 0:00:00]} bxc5 {[%emt 0:00:00]} 26. Qxa4 {[%emt 0:00:00]}
cxd4 {[%emt 0:00:00]} 27. Qxd4 {[%emt 0:00:00]} Nf6 {[%emt 0:00:00]} 28. Qa4 {
[%emt 0:00:00]} Rb8 {[%emt 0:00:00]} 29. Qa6 {[%emt 0:00:00]} Red8 {[%emt 0:00:
00]} 30. a4 {[%emt 0:00:00]} Bc5 {[%emt 0:00:00]} 31. Bxf6 {[%emt 0:00:00]}
Qxf6 {[%emt 0:00:00]} 32. Qxf6 {[%emt 0:00:00]} gxf6 {[%emt 0:00:00]} 33. Bc6 {
[%emt 0:00:00]} Rb3 {[%emt 0:00:00]} 34. Bb5 {[%emt 0:00:00]} Bf8 {[%emt 0:00:
00]} 35. Kf1 {[%emt 0:00:00]} Ra3 {[%emt 0:00:00]} 36. Rd2 {[%emt 0:00:00]} f5
{[%emt 0:00:00]} 37. Ke2 {[%emt 0:00:00]} Bg7 {[%emt 0:00:11]} 38. Rc2 {
[%emt 0:00:00]} Rc3 {[%emt 0:00:10]} 39. Ra2 {[%emt 0:00:00]} Rb3 {[%emt 0:00:
01]} 40. Nf4 {[%emt 0:00:00]} Rb2+ {[%emt 0:00:08]} 41. Rxb2 {[%emt 0:00:00]}
Bxb2 {[%emt 0:00:01]} 42. a5 {[%emt 0:00:00]} Ba3 {[%emt 0:00:07]} 43. a6 {
[%emt 0:00:00]} Bc5 {[%emt 0:00:02]} 44. Bd3 {[%emt 0:00:00]} Rd6 {[%emt 0:00:
10]} 45. Ng2 {[%emt 0:00:05]} Rb6 {[%emt 0:01:04]} 46. Nh4 {[%emt 0:00:02]} f4
{[%emt 0:00:02]} 47. gxf4 {[%emt 0:00:02]} Rb2+ {[%emt 0:00:21]} 48. Kf3 {
[%emt 0:00:10]} Ra2 {[%emt 0:00:04]} 49. Nf5 {[%emt 0:00:18]} Ra4 {[%emt 0:00:
23]} 50. Ng3 {[%emt 0:00:16]} Kg7 {[%emt 0:00:15]} 51. Ne4 {[%emt 0:00:12]} Bb4
{[%emt 0:00:02]} 52. f5 {[%emt 0:00:12]} Ra5 {[%emt 0:00:10]} 53. Kf4 {[%emt 0:
00:17]} f6 {[%emt 0:00:01]} 54. Ng3 {[%emt 0:00:40]} Kf7 {[%emt 0:00:03]} 55.
Ke4 {[%emt 0:00:43]} Bd6 {[%emt 0:00:29]} 56. Ne2 {[%emt 0:00:18]} Ke7 {
[%emt 0:00:12]} 57. Nd4 {[%emt 0:00:11]} Kd7 {[%emt 0:00:09]} 58. f4 {[%emt 0:
00:13]} Bc7 {[%emt 0:00:30]} 59. Bb5+ {[%emt 0:00:16]} Kd6 {[%emt 0:00:07]} 60.
Bc4 {[%emt 0:00:14]} Bb6 {[%emt 0:00:06]} 61. Nc2 {[%emt 0:00:20]} Ra4 {
[%emt 0:00:07]} 62. Kd3 {[%emt 0:00:06]} Kc5 {[%emt 0:00:00]} 63. Bg8 {[%emt 0:
00:11]} h6 {[%emt 0:00:15]} 64. Nd4 {[%emt 0:00:11]} Rxa6 {[%emt 0:00:01]} 65.
Ke4 {[%emt 0:00:21]} Kd6 {[%emt 0:00:05]} 66. Nb5+ {[%emt 0:00:10]} Ke7 {
[%emt 0:00:11]} 67. Nc3 Kf8 {[%emt 0:00:01]} 68. Be6 {[%emt 0:00:01]} Ra3 {
[%emt 0:00:03]} 69. Nd5 {[%emt 0:00:01]} Ba7 {[%emt 0:00:05]} 70. h4 {[%emt 0:
00:02]} Kg7 {[%emt 0:00:07]} 71. Kf3 {[%emt 0:00:03]} Bc5 {[%emt 0:00:06]} 72.
Ke4 {[%emt 0:00:01]} Ra1 {[%emt 0:00:04]} 73. Kf3 {[%emt 0:00:01]} Ra3 {
[%emt 0:00:13]} 74. Ke4 {[%emt 0:00:01]} h5 {[%emt 0:00:05]} 75. Kf3 {[%emt 0:
00:03]} Ba7 {[%emt 0:00:02]} 76. Bd7 {[%emt 0:00:04]} Bc5 {[%emt 0:00:02]} 77.
Be8 {[%emt 0:00:03]} Rd3 {[%emt 0:00:02]} 78. Ke4 {[%emt 0:00:02]} Rd1 {
[%emt 0:00:04]} 79. Bxh5 {[%emt 0:00:16]} Rh1 {[%emt 0:00:02]} 80. Nc7 {
[%emt 0:00:06]} Rxh4 {[%emt 0:00:16]} 81. Bg6 {[%emt 0:00:01]} Be7 {[%emt 0:00:
12]} 82. Kd5 {[%emt 0:00:07]} Rh3 {[%emt 0:00:02]} 83. e4 {[%emt 0:00:05]} Rc3
{[%emt 0:00:08]} 84. Ne6+ {[%emt 0:00:04]} Kg8 {[%emt 0:00:01]} 85. e5 {
[%emt 0:00:06]} Ra3 {[%emt 0:00:02]} 86. Nd4 {[%emt 0:00:06]} Kf8 {[%emt 0:00:
01]} 87. Nc6 {[%emt 0:00:04]} Rc3 {[%emt 0:00:04]} 88. Nd4 {[%emt 0:00:08]} Ra3
{[%emt 0:00:03]} 89. Ne6+ {[%emt 0:00:17]} Kg8 {[%emt 0:00:01]} 90. Kc6 {
[%emt 0:00:00]} Rd3 {[%emt 0:00:08]} 91. Nc7 {[%emt 0:00:12]} Kf8 {[%emt 0:00:
01]} 92. Nd5 {[%emt 0:00:04]} Rd4 {[%emt 0:00:01]} 93. exf6 {[%emt 0:00:07]}
Ba3 {[%emt 0:00:28]} 94. f7 {[%emt 0:00:08]} Kg7 {[%emt 0:00:02]} 95. Nb6 {
[%emt 0:00:05]} Rxf4 {[%emt 0:00:05]} 96. Nd7 {[%emt 0:00:03]} Rxf5 {[%emt 0:
00:02]} 97. Bxf5 {[%emt 0:00:01]} Kxf7 {[%emt 0:00:01]} 1/2-1/2

[Event "Grandmaster Tournament Rapid"]
[Site "Biel/Bienne, Switzerland"]
[Date "2019.07.21"]
[Round "3.4"]
[White "Cori, Jorge"]
[Black "Maghsoodloo, Parham"]
[Result "0-1"]
[ECO "A84"]
[WhiteElo "2686"]
[BlackElo "2656"]
[PlyCount "66"]
[EventDate "2019.??.??"]
[EventType "rapid"]
[TimeControl "15+5"]
[WhiteClock "0:00:07"]
[BlackClock "0:00:26"]

1. d4 {[%emt 0:00:00]} f5 {[%emt 0:00:00]} 2. Nf3 {[%emt 0:00:00]} Nf6 {
[%emt 0:00:00]} 3. c4 {[%emt 0:00:00]} e6 {[%emt 0:00:00]} 4. Nc3 {[%emt 0:00:
00]} c6 {[%emt 0:00:00]} 5. Bf4 {[%emt 0:00:00]} d5 {[%emt 0:00:00]} 6. e3 {
[%emt 0:00:00]} Be7 {[%emt 0:00:00]} 7. Be2 {[%emt 0:00:00]} O-O {[%emt 0:00:
00]} 8. O-O {[%emt 0:00:00]} Nh5 {[%emt 0:00:00]} 9. Be5 {[%emt 0:00:00]} Nd7 {
[%emt 0:00:00]} 10. cxd5 {[%emt 0:00:00]} exd5 {[%emt 0:00:00]} 11. Qc2 {
[%emt 0:00:00]} Nhf6 {[%emt 0:00:00]} 12. Rab1 {[%emt 0:00:00]} a5 {[%emt 0:00:
00]} 13. a3 {[%emt 0:00:00]} Ne4 {[%emt 0:00:00]} 14. h3 {[%emt 0:00:00]} Nxe5
{[%emt 0:00:00]} 15. Nxe5 {[%emt 0:00:00]} Bd6 {[%emt 0:00:00]} 16. f4 {
[%emt 0:00:00]} Qe7 {[%emt 0:00:00]} 17. Bd3 {[%emt 0:00:00]} Be6 {[%emt 0:00:
00]} 18. Na4 {[%emt 0:00:00]} g5 {[%emt 0:00:00]} 19. Rbe1 {[%emt 0:00:00]} Kh8
{[%emt 0:00:00]} 20. Bxe4 {[%emt 0:00:00]} dxe4 {[%emt 0:00:00]} 21. g3 {
[%emt 0:00:00]} Rg8 {[%emt 0:00:00]} 22. Kh2 {[%emt 0:00:00]} Rg7 {[%emt 0:00:
00]} 23. Qf2 {[%emt 0:00:00]} Rag8 {[%emt 0:00:00]} 24. Rg1 {[%emt 0:00:00]}
Bf7 {[%emt 0:00:00]} 25. Nc3 {[%emt 0:00:00]} Bh5 {[%emt 0:00:00]} 26. g4 {
[%emt 0:00:00]} fxg4 {[%emt 0:00:00]} 27. Nxe4 {[%emt 0:00:00]} gxf4 {[%emt 0:
00:00]} 28. exf4 {[%emt 0:00:00]} Bc7 {[%emt 0:00:00]} 29. f5 {[%emt 0:00:00]}
gxh3 {[%emt 0:00:00]} 30. Ng3 {[%emt 0:00:49]} Qf8 {[%emt 0:01:07]} 31. f6 {
[%emt 0:00:13]} Rg5 {[%emt 0:00:01]} 32. Qf4 {[%emt 0:01:30]} Bf7 {[%emt 0:00:
34]} 33. Ref1 {[%emt 0:00:21]} Bc4 {[%emt 0:00:52]} 0-1

[Event "Grandmaster Tournament Rapid"]
[Site "Biel/Bienne, Switzerland"]
[Date "2019.07.21"]
[Round "4.1"]
[White "Cori, Jorge"]
[Black "Bogner, Sebastian"]
[Result "1-0"]
[ECO "D15"]
[WhiteElo "2686"]
[BlackElo "2584"]
[PlyCount "53"]
[EventDate "2019.??.??"]
[EventType "rapid"]
[TimeControl "15+5"]
[WhiteClock "0:00:54"]
[BlackClock "0:00:56"]

1. d4 {[%emt 0:00:00]} d5 {[%emt 0:00:00]} 2. Nf3 {[%emt 0:00:00]} Nf6 {
[%emt 0:00:00]} 3. c4 {[%emt 0:00:00]} c6 {[%emt 0:00:00]} 4. e3 {[%emt 0:00:
00]} Bf5 {[%emt 0:00:00]} 5. Nc3 {[%emt 0:00:00]} a6 {[%emt 0:00:00]} 6. Be2 {
[%emt 0:00:00]} h6 {[%emt 0:00:00]} 7. Qb3 {[%emt 0:00:00]} Ra7 {[%emt 0:00:00]
} 8. cxd5 {[%emt 0:00:00]} cxd5 {[%emt 0:00:00]} 9. Ne5 {[%emt 0:00:00]} e6 {
[%emt 0:00:00]} 10. Bd2 {[%emt 0:00:00]} Nbd7 {[%emt 0:00:00]} 11. O-O {
[%emt 0:00:00]} Bd6 {[%emt 0:00:00]} 12. Nxd7 {[%emt 0:00:00]} Nxd7 {[%emt 0:
00:00]} 13. Nxd5 {[%emt 0:00:00]} exd5 {[%emt 0:00:00]} 14. Qxd5 {[%emt 0:00:
00]} Qf6 {[%emt 0:00:00]} 15. e4 {[%emt 0:00:00]} Bg6 {[%emt 0:00:00]} 16. e5 {
[%emt 0:00:00]} Nxe5 {[%emt 0:00:00]} 17. dxe5 {[%emt 0:00:00]} Qxe5 {[%emt 0:
00:00]} 18. Qxe5+ {[%emt 0:00:00]} Bxe5 {[%emt 0:00:00]} 19. Bb4 {[%emt 0:00:
00]} Kd7 {[%emt 0:00:00]} 20. Rac1 {[%emt 0:00:00]} Rd8 {[%emt 0:00:00]} 21.
Rfd1+ {[%emt 0:00:00]} Ke8 {[%emt 0:00:00]} 22. Re1 {[%emt 0:00:00]} f6 {
[%emt 0:00:29]} 23. Bf1 {[%emt 0:01:06]} b6 {[%emt 0:00:09]} 24. f4 {[%emt 0:
00:18]} Rd4 {[%emt 0:00:01]} 25. Rc4 {[%emt 0:00:02]} Rad7 {[%emt 0:00:49]} 26.
fxe5 {[%emt 0:00:08]} Rxc4 {[%emt 0:00:01]} 27. Bxc4 {[%emt 0:00:02]} 1-0

[Event "Grandmaster Tournament Rapid"]
[Site "Biel/Bienne, Switzerland"]
[Date "2019.07.21"]
[Round "4.2"]
[White "Maghsoodloo, Parham"]
[Black "Shankland, Sam"]
[Result "0-1"]
[ECO "B80"]
[WhiteElo "2656"]
[BlackElo "2713"]
[PlyCount "136"]
[EventDate "2019.??.??"]
[EventType "rapid"]
[TimeControl "15+5"]
[WhiteClock "0:00:14"]
[BlackClock "0:00:36"]

1. e4 {[%emt 0:00:01]} c5 2. Nf3 {[%emt 0:00:01]} e6 3. d4 {[%emt 0:00:00]}
cxd4 {[%emt 0:00:00]} 4. Nxd4 {[%emt 0:00:00]} Nc6 {[%emt 0:00:00]} 5. Nc3 {
[%emt 0:00:00]} Qc7 {[%emt 0:00:00]} 6. g3 {[%emt 0:00:00]} a6 {[%emt 0:00:00]}
7. Bg2 {[%emt 0:00:00]} Nf6 {[%emt 0:00:00]} 8. O-O {[%emt 0:00:00]} d6 {
[%emt 0:00:00]} 9. Re1 {[%emt 0:00:00]} Nd7 {[%emt 0:00:00]} 10. a4 {[%emt 0:
00:00]} Be7 {[%emt 0:00:00]} 11. Nde2 {[%emt 0:00:00]} O-O {[%emt 0:00:00]} 12.
b3 {[%emt 0:00:00]} Rb8 {[%emt 0:00:00]} 13. Bb2 {[%emt 0:00:00]} b5 {[%emt 0:
00:00]} 14. axb5 {[%emt 0:00:00]} axb5 {[%emt 0:00:00]} 15. Nf4 {[%emt 0:00:00]
} b4 {[%emt 0:00:00]} 16. Na4 {[%emt 0:00:00]} Bf6 {[%emt 0:00:00]} 17. Qd2 {
[%emt 0:00:00]} Bxb2 {[%emt 0:00:00]} 18. Nxb2 {[%emt 0:00:00]} Nf6 {[%emt 0:
00:00]} 19. Nfd3 {[%emt 0:00:00]} e5 {[%emt 0:00:00]} 20. Ra4 {[%emt 0:00:00]}
Be6 {[%emt 0:00:00]} 21. f4 {[%emt 0:00:00]} exf4 {[%emt 0:00:00]} 22. gxf4 {
[%emt 0:00:00]} Rfe8 {[%emt 0:00:00]} 23. Nf2 {[%emt 0:00:00]} Rbd8 {[%emt 0:
00:00]} 24. Nbd3 {[%emt 0:00:00]} d5 {[%emt 0:00:00]} 25. f5 {[%emt 0:00:00]}
Nxe4 {[%emt 0:00:00]} 26. Nxe4 {[%emt 0:00:00]} dxe4 {[%emt 0:00:00]} 27. fxe6
{[%emt 0:00:00]} exd3 {[%emt 0:00:00]} 28. exf7+ {[%emt 0:00:00]} Qxf7 {
[%emt 0:00:00]} 29. Rxe8+ {[%emt 0:00:00]} Qxe8 {[%emt 0:00:00]} 30. cxd3 {
[%emt 0:00:00]} Qe5 {[%emt 0:00:00]} 31. Kh1 {[%emt 0:00:00]} Qc5 {[%emt 0:00:
00]} 32. h3 {[%emt 0:00:00]} h6 {[%emt 0:00:00]} 33. Qe1 {[%emt 0:00:00]} Ne5 {
[%emt 0:00:00]} 34. Rxb4 {[%emt 0:00:00]} Nxd3 {[%emt 0:00:00]} 35. Qe6+ {
[%emt 0:00:00]} Kh8 {[%emt 0:00:00]} 36. Rc4 {[%emt 0:00:00]} Qf2 {[%emt 0:00:
00]} 37. Qe7 {[%emt 0:00:00]} Rf8 {[%emt 0:00:34]} 38. Rd4 {[%emt 0:00:13]}
Qxd4 {[%emt 0:01:30]} 39. Qxf8+ {[%emt 0:00:01]} Kh7 {[%emt 0:00:01]} 40. Qf5+
{[%emt 0:00:01]} Kh8 {[%emt 0:00:00]} 41. Bd5 {[%emt 0:00:44]} Ne5 {[%emt 0:00:
26]} 42. Qc8+ {[%emt 0:00:59]} Kh7 {[%emt 0:00:01]} 43. Qc2+ {[%emt 0:00:21]}
Kh8 {[%emt 0:00:01]} 44. Be4 {[%emt 0:00:06]} Kg8 {[%emt 0:00:21]} 45. Kg2 {
[%emt 0:00:06]} Kf7 {[%emt 0:00:09]} 46. Qe2 {[%emt 0:00:24]} g6 {[%emt 0:00:
14]} 47. Qc2 {[%emt 0:00:41]} h5 {[%emt 0:00:07]} 48. Qe2 {[%emt 0:00:17]} Kg7
{[%emt 0:00:04]} 49. Bc2 {[%emt 0:00:15]} h4 {[%emt 0:00:22]} 50. b4 {[%emt 0:
00:06]} Qf4 {[%emt 0:00:04]} 51. Kh1 {[%emt 0:00:03]} Qg3 {[%emt 0:00:13]} 52.
Qh2 {[%emt 0:00:09]} Qe3 {[%emt 0:00:06]} 53. Qg2 {[%emt 0:00:05]} Qc1+ {
[%emt 0:00:07]} 54. Kh2 {[%emt 0:00:02]} Qf4+ {[%emt 0:00:01]} 55. Kh1 {
[%emt 0:00:01]} Qxb4 {[%emt 0:00:06]} 56. Qe2 {[%emt 0:00:11]} Qf4 {[%emt 0:00:
02]} 57. Qg2 {[%emt 0:00:06]} Qe3 {[%emt 0:00:03]} 58. Be4 {[%emt 0:00:02]} Kh6
{[%emt 0:00:06]} 59. Kh2 {[%emt 0:00:01]} g5 {[%emt 0:00:04]} 60. Kh1 {[%emt 0:
00:10]} Qf4 {[%emt 0:00:03]} 61. Qe2 {[%emt 0:00:07]} Qg3 {[%emt 0:00:06]} 62.
Bg2 {[%emt 0:00:02]} Qc3 {[%emt 0:00:05]} 63. Qf1 {[%emt 0:00:02]} Ng6 {
[%emt 0:00:02]} 64. Qd1 {[%emt 0:00:07]} Qf6 {[%emt 0:00:03]} 65. Be4 {[%emt 0:
00:10]} Nf4 {[%emt 0:00:02]} 66. Kh2 {[%emt 0:00:05]} Qe5 {[%emt 0:00:07]} 67.
Qf3 {[%emt 0:00:00]} Nd3+ {[%emt 0:00:07]} 68. Kh1 {[%emt 0:00:02]} Qxe4 {
[%emt 0:00:02]} 0-1